bitfinex/quotes_BTCUSD_20230403
["timestamp","ask_amount","ask_price","bid_price","bid_amount"]
[1680513653324,0.00018,28342.0,28339.0,0.01188466]
[1680513653543,0.08338912,28343.0,28339.0,0.14417742]
[1680513653544,0.00038912,28343.0,28339.0,0.14417742]
[1680513653762,0.019,28342.0,28339.0,0.12653442]
[1680513653983,0.35554409,28343.0,28339.0,0.12653442]
[1680513654196,0.013,28342.0,28338.0,0.12653442]
[1680513654887,0.35554409,28343.0,28338.0,0.12653442]
[1680513655294,0.006,28342.0,28338.0,0.12653442]
[1680513656230,0.00638874,28342.0,28338.0,0.14417842]
[1680513656443,0.00038874,28342.0,28338.0,0.12653442]
[1680513656889,0.00038874,28342.0,28338.0,0.14417742]
[1680513657110,0.00638874,28342.0,28338.0,0.14417742]
[1680513661320,0.00638874,28342.0,28339.0,0.29544707]
[1680513661541,0.00638874,28342.0,28340.0,0.12653442]
[1680513661756,0.00638874,28342.0,28339.0,0.31309007]
[1680513662413,0.00038874,28342.0,28341.0,0.08428239]
[1680513662630,0.00638874,28342.0,28341.0,0.08428239]
[1680513662850,0.00038874,28342.0,28341.0,0.08428239]
[1680513663080,0.013,28342.0,28340.0,0.21081681]
[1680513663298,0.013,28342.0,28341.0,0.017642]
[1680513663528,0.013,28342.0,28340.0,0.22845881]
[1680513663752,0.02460898,28342.0,28341.0,0.08428239]
[1680513663870,0.02460898,28342.0,28340.0,0.12653442]
[1680513663871,0.05060898,28342.0,28340.0,0.21081681]
[1680513664092,0.05098181,28342.0,28340.0,0.21081681]
[1680513664305,0.05098181,28342.0,28340.0,0.08428239]
[1680513665149,0.02498181,28342.0,28340.0,0.08428239]
[1680513665367,0.04398181,28342.0,28340.0,0.08428239]
[1680513666421,0.04398181,28342.0,28340.0,0.10192439]
[1680513666641,0.04398181,28342.0,28340.0,0.08428239]
[1680513671031,0.04360898,28342.0,28340.0,0.08428239]
[1680513671244,0.04360898,28342.0,28341.0,0.10970939]
[1680513671463,0.019,28342.0,28341.0,0.10970939]
[1680513671677,0.019,28342.0,28341.0,0.08428239]
[1680513672145,0.00038912,28343.0,28341.0,0.08428239]
[1680513672355,0.02828218,28342.0,28341.0,0.08428239]
[1680513672793,0.05428218,28342.0,28341.0,0.08428239]
[1680513675888,0.05428218,28342.0,28341.0,0.21081681]
[1680513676103,0.05446218,28342.0,28341.0,0.21081681]
[1680513676758,0.05417847,28342.0,28341.0,0.21081681]
[1680513677395,0.05417847,28342.0,28341.0,0.08428239]
[1680513677645,0.06291382,28342.0,28341.0,0.08428239]
[1680513677877,0.06291382,28342.0,28341.0,0.12653442]
[1680513679887,0.41788879,28342.0,28341.0,0.12653442]
[1680513680924,0.39188879,28342.0,28341.0,0.12653442]
[1680513681135,0.41778618,28342.0,28341.0,0.12653442]
[1680513681768,0.41778618,28342.0,28341.0,0.29544707]
[1680513681979,0.41778618,28342.0,28341.0,0.29562707]
[1680513683033,0.41778618,28342.0,28341.0,0.12671442]
[1680513683248,0.41778618,28342.0,28341.0,0.12653442]
[1680513683699,0.39178618,28342.0,28341.0,0.29544707]
[1680513683909,0.41778618,28342.0,28341.0,0.16909265]
[1680513684590,0.06281121,28342.0,28341.0,0.16909265]
[1680513684783,0.06281121,28342.0,28341.0,0.42315046]
[1680513685000,0.06281121,28342.0,28341.0,0.42542646]
[1680513685213,0.06281121,28342.0,28341.0,0.21428565]
[1680513687075,0.06322206,28342.0,28341.0,0.21428565]
[1680513687500,0.06322206,28342.0,28341.0,0.42542646]
[1680513688802,0.06322206,28342.0,28341.0,0.25651381]
[1680513689489,0.02641085,28342.0,28341.0,0.045373]
[1680513690148,0.026,28342.0,28341.0,0.045373]
[1680513690362,0.00038912,28343.0,28341.0,0.045373]
[1680513690601,0.00038912,28343.0,28342.0,0.23677568]
[1680513690836,0.00038912,28343.0,28342.0,0.07853]
[1680513691571,0.00038912,28343.0,28342.0,0.23685418]
[1680513691801,0.35536409,28343.0,28342.0,0.16901709]
[1680513692040,0.38787009,28343.0,28342.0,0.12694594]
[1680513692274,0.39387009,28343.0,28342.0,0.21146125]
[1680513692507,0.43081915,28343.0,28342.0,0.21128125]
[1680513692727,0.43099915,28343.0,28342.0,0.21128125]
[1680513693194,0.42541026,28343.0,28342.0,0.21128125]
[1680513693420,0.43841026,28343.0,28342.0,0.21128125]
[1680513693663,0.42541026,28343.0,28342.0,0.21128125]
[1680513693886,0.42541026,28343.0,28342.0,0.12676594]
[1680513694768,0.44541026,28343.0,28342.0,0.12676594]
[1680513694888,0.51981026,28343.0,28342.0,0.12676594]
[1680513695980,1.26903313,28343.0,28341.0,6e-05]
[1680513696224,0.5707,28339.0,28338.0,0.08456805]
[1680513696460,0.2,28336.0,28331.0,0.08456805]
[1680513696698,0.2,28336.0,28330.0,0.08723315]
[1680513696699,0.72567497,28332.0,28330.0,0.08723315]
[1680513696939,0.58183787,28331.0,28328.0,0.09829315]
[1680513697166,0.0831,28329.0,28328.0,0.0219]
[1680513697392,0.126404,28329.0,28328.0,0.0219]
[1680513697647,0.126584,28329.0,28328.0,0.0219]
[1680513698087,0.95844523,28329.0,28328.0,0.0219]
[1680513698525,0.98544523,28329.0,28328.0,0.0219]
[1680513698793,1.3134202,28329.0,28328.0,0.0219]
[1680513698992,1.34082616,28329.0,28328.0,0.0219]
[1680513699215,1.31382616,28329.0,28328.0,0.0219]
[1680513699434,1.34082616,28329.0,28328.0,0.0219]
[1680513699889,0.50896493,28329.0,28328.0,0.0219]
[1680513701206,0.48196493,28329.0,28328.0,0.0219]
[1680513701434,0.50896493,28329.0,28328.0,0.0219]
[1680513701650,0.48196493,28329.0,28328.0,0.0219]
[1680513701864,0.50896493,28329.0,28328.0,0.0219]
[1680513702308,0.50855897,28329.0,28328.0,0.0219]
[1680513705259,0.48155897,28329.0,28328.0,0.0219]
[1680513705475,0.50855897,28329.0,28328.0,0.0219]
[1680513706128,1.10403384,28329.0,28328.0,0.0219]
[1680513706342,1.23505897,28329.0,28328.0,0.0219]
[1680513706559,1.27055897,28329.0,28328.0,0.0219]
[1680513706774,1.24355897,28329.0,28328.0,0.0219]
[1680513706995,1.42055897,28329.0,28328.0,0.0219]
[1680513707219,1.74876721,28329.0,28328.0,0.0219]
[1680513707439,1.77576721,28329.0,28328.0,0.0219]
[1680513707659,1.79340155,28329.0,28328.0,0.0219]
[1680513707900,1.23505897,28329.0,28328.0,0.0219]
[1680513708125,0.89135897,28329.0,28328.0,0.0219]
[1680513708355,1.46989904,28329.0,28328.0,0.01841599]
[1680513708578,1.46971904,28329.0,28328.0,0.01841599]
[1680513709277,1.49671904,28329.0,28328.0,0.01841599]
[1680513709497,1.46971904,28329.0,28328.0,0.01531899]
[1680513709713,1.55294047,28329.0,28328.0,0.01531899]
[1680513710394,1.55294047,28329.0,28328.0,0.01225296]
[1680513710627,1.56144047,28329.0,28328.0,0.01225296]
[1680513711500,1.56144047,28329.0,28328.0,0.00921759]
[1680513712595,1.56144047,28329.0,28328.0,0.00621257]
[1680513713288,1.53444047,28329.0,28328.0,0.00621257]
[1680513713503,1.56144047,28329.0,28328.0,0.00323173]
[1680513714196,1.65521904,28329.0,28328.0,0.00323173]
[1680513714417,1.49671904,28329.0,28328.0,0.0002807]
[1680513715071,1.50521904,28329.0,28328.0,0.0002807]
[1680513715293,1.47821904,28329.0,28328.0,0.0002807]
[1680513715510,0.5207,28328.0,28327.0,0.0219]
[1680513715719,1.73631397,28328.0,28327.0,0.0219]
[1680513715936,1.75394831,28328.0,28327.0,0.0219]
[1680513716141,2.04694031,28328.0,28327.0,0.0086]
[1680513716356,2.04694031,28328.0,28327.0,0.00568428]
[1680513716357,2.10017602,28328.0,28327.0,0.00568428]
[1680513716577,2.42838426,28328.0,28327.0,0.00568428]
[1680513716840,2.45538426,28328.0,28327.0,0.00568428]
[1680513717072,0.2,28326.0,28325.0,0.02090332]
[1680513717297,1.51924497,28326.0,28325.0,0.02090332]
[1680513717512,1.70631931,28326.0,28325.0,0.02090332]
[1680513717732,1.53687931,28326.0,28325.0,0.02084332]
[1680513718171,1.68687931,28326.0,28325.0,0.02084332]
[1680513718406,1.68687931,28326.0,28325.0,0.01797631]
[1680513718407,1.6979151,28326.0,28325.0,0.01797631]
[1680513718615,9.1979151,28326.0,28325.0,0.01797631]
[1680513718833,9.43012334,28326.0,28325.0,0.01797631]
[1680513719122,9.0664151,28326.0,28325.0,0.01797631]
[1680513719389,9.0664151,28326.0,28325.0,0.01513797]
[1680513720268,8.8664151,28326.0,28325.0,0.01513797]
[1680513720495,1.5749151,28326.0,28325.0,0.01234001]
[1680513720726,1.5664151,28326.0,28325.0,0.01234001]
[1680513721427,1.5664151,28326.0,28325.0,0.00956877]
[1680513721641,1.7249151,28326.0,28325.0,0.00956877]
[1680513722080,1.7249151,28326.0,28325.0,0.00614097]
[1680513722519,0.44594,28328.0,28325.0,0.00339354]
[1680513722744,0.27901897,28328.0,28326.0,0.2]
[1680513722977,0.37169668,28331.0,28326.0,0.2]
[1680513722978,0.15846835,28331.0,28330.0,0.19982]
[1680513723247,0.00018,28335.0,28334.0,0.19982]
[1680513723427,0.00038912,28343.0,28334.0,0.65071397]
[1680513723665,0.00038912,28343.0,28339.0,0.19982]
[1680513723883,0.00038912,28343.0,28340.0,0.041843]
[1680513724111,0.00018,28338.0,28336.0,0.00018]
[1680513724354,0.00018,28338.0,28336.0,0.193433]
[1680513724609,0.00018,28338.0,28337.0,0.043587]
[1680513724841,0.10514431,28342.0,28340.0,0.22282]
[1680513725065,0.02244431,28342.0,28341.0,0.128537]
[1680513725286,0.02244431,28342.0,28341.0,0.181463]
[1680513725523,0.00038912,28343.0,28341.0,0.181463]
[1680513725768,0.00038912,28343.0,28342.0,0.274544]
[1680513725994,0.00038912,28343.0,28342.0,0.292185]
[1680513727344,0.00138912,28343.0,28342.0,0.292185]
[1680513727556,0.00038912,28343.0,28342.0,0.292185]
[1680513727771,0.00038912,28343.0,28342.0,0.319185]
[1680513727990,0.00138912,28343.0,28342.0,0.319185]
[1680513728467,0.00138912,28343.0,28342.0,0.169185]
[1680513728705,0.49833896,28343.0,28342.0,0.027]
[1680513728915,0.37098409,28343.0,28342.0,0.027]
[1680513729578,0.00018,28338.0,28337.0,0.22454252]
[1680513730759,0.00018,28342.0,28337.0,0.22454252]
[1680513730993,0.002,28338.0,28337.0,0.22554252]
[1680513733859,0.00218,28338.0,28337.0,0.22554252]
[1680513734080,0.35715497,28338.0,28337.0,0.22554252]
[1680513734291,0.37225497,28338.0,28337.0,0.22554252]
[1680513734720,0.37025497,28338.0,28337.0,0.22454252]
[1680513734971,0.37025497,28338.0,28337.0,0.22554252]
[1680513735827,0.37025497,28338.0,28337.0,0.22454252]
[1680513736038,0.37625497,28338.0,28337.0,0.22454252]
[1680513736276,0.37025497,28338.0,28337.0,0.22054252]
[1680513736504,0.37433497,28338.0,28337.0,0.22054252]
[1680513737377,0.51603018,28338.0,28337.0,0.22054252]
[1680513737603,0.51603018,28338.0,28336.0,0.00018]
[1680513737604,0.15,28337.0,28336.0,0.00018]
[1680513737845,0.15,28337.0,28329.0,0.44670681]
[1680513737846,1.2082386,28337.0,28329.0,0.44670681]
[1680513738066,0.35486407,28334.0,28329.0,0.44664681]
[1680513738303,0.67857087,28333.0,28329.0,0.44670681]
[1680513738519,0.37035797,28332.0,28329.0,0.44670681]
[1680513738770,0.35497497,28332.0,28329.0,0.44670681]
[1680513738991,0.36732797,28332.0,28329.0,0.44670681]
[1680513739211,0.36722585,28332.0,28329.0,0.44670681]
[1680513739652,0.014573,28331.0,28329.0,0.44670681]
[1680513739891,0.3548603,28330.0,28329.0,0.44652681]
[1680513740115,0.3548603,28330.0,28329.0,0.44670681]
[1680513741834,0.3738603,28330.0,28329.0,0.44670681]
[1680513742267,0.019,28330.0,28329.0,0.44670681]
[1680513742496,0.019,28330.0,28329.0,0.44652681]
[1680513743005,0.00018,28334.0,28329.0,0.44652681]
[1680513743227,0.019,28330.0,28329.0,0.44652681]
[1680513744109,0.38632897,28330.0,28329.0,0.44652681]
[1680513744334,0.40167597,28330.0,28329.0,0.44652681]
[1680513744553,0.38267597,28330.0,28329.0,0.44652681]
[1680513744774,0.40167597,28330.0,28329.0,0.44652681]
[1680513745485,0.38267597,28330.0,28329.0,0.44652681]
[1680513745702,0.40867597,28330.0,28329.0,0.44652681]
[1680513747884,0.77937597,28330.0,28329.0,0.44652681]
[1680513748107,1.25950977,28330.0,28329.0,0.22598429]
[1680513748751,1.23350977,28330.0,28329.0,0.22598429]
[1680513748970,1.25950977,28330.0,28329.0,0.22598429]
[1680513749223,1.31640977,28330.0,28329.0,0.22598429]
[1680513749443,1.34340977,28330.0,28329.0,0.22598429]
[1680513750801,1.31640977,28330.0,28329.0,0.22598429]
[1680513751007,1.08887597,28330.0,28329.0,0.22598429]
[1680513751220,0.71817597,28330.0,28329.0,0.22598429]
[1680513753160,0.70967597,28330.0,28329.0,0.22598429]
[1680513753386,0.39732197,28330.0,28329.0,0.22598429]
[1680513753608,0.02718,28330.0,28329.0,0.22598429]
[1680513753858,0.027,28330.0,28329.0,0.22598429]
[1680513754061,0.027,28330.0,28329.0,0.26888529]
[1680513754290,0.012532,28334.0,28329.0,0.26888529]
[1680513754508,0.08388089,28335.0,28329.0,0.26888529]
[1680513754509,0.026,28330.0,28329.0,0.22598429]
[1680513754722,0.35497497,28333.0,28329.0,0.22598429]
[1680513754723,0.35515497,28333.0,28329.0,0.22598429]
[1680513755166,0.026,28330.0,28329.0,0.22598429]
[1680513755384,0.35515497,28333.0,28329.0,0.26986229]
[1680513755642,0.38115497,28333.0,28329.0,0.22598429]
[1680513755853,0.39350797,28333.0,28329.0,0.22598429]
[1680513756508,0.36750797,28333.0,28329.0,0.22598429]
[1680513756728,0.026,28330.0,28329.0,0.22598429]
[1680513756940,0.00018,28332.0,28329.0,0.22598429]
[1680513757154,0.35497497,28331.0,28329.0,0.22598429]
[1680513757374,0.35515497,28331.0,28329.0,0.22598429]
[1680513757814,0.026,28330.0,28329.0,0.22598429]
[1680513758036,0.35515497,28331.0,28329.0,0.22598429]
[1680513758244,0.52312984,28331.0,28329.0,0.22598429]
[1680513758474,0.52312984,28331.0,28327.0,0.19642652]
[1680513758475,1.41740931,28330.0,28327.0,0.19642652]
[1680513758690,0.5369,28328.0,28327.0,0.19624652]
[1680513758933,0.564007,28328.0,28327.0,0.19624652]
[1680513759157,0.572507,28328.0,28327.0,0.19624652]
[1680513759825,0.599687,28328.0,28327.0,0.19624652]
[1680513760970,0.95466197,28328.0,28327.0,0.19624652]
[1680513762077,0.87156197,28328.0,28327.0,0.19624652]
[1680513767339,0.39690697,28328.0,28327.0,0.19624652]
[1680513767559,0.40926197,28328.0,28327.0,0.19624652]
[1680513767996,0.39690697,28328.0,28327.0,0.19624652]
[1680513768205,0.40926197,28328.0,28327.0,0.19624652]
[1680513769553,0.40236,28340.0,28328.0,0.57061966]
[1680513769785,0.00038912,28343.0,28328.0,0.57061966]
[1680513769786,0.00098089,28335.0,28334.0,0.19991966]
[1680513770006,0.00038912,28343.0,28338.0,0.19991966]
[1680513770235,0.00038912,28343.0,28339.0,0.45540097]
[1680513770478,0.00038912,28343.0,28342.0,0.0826]
[1680513770700,0.00038912,28343.0,28342.0,0.42965566]
[1680513771612,0.00138912,28343.0,28342.0,0.44565566]
[1680513771838,0.00038912,28343.0,28342.0,0.42965566]
[1680513772058,0.00038912,28343.0,28342.0,0.34705566]
[1680513772288,0.00038912,28343.0,28342.0,0.43965566]
[1680513772289,0.00138912,28343.0,28342.0,0.43965566]
[1680513772730,0.00138912,28343.0,28342.0,0.42201466]
[1680513772966,0.00138912,28343.0,28342.0,0.47493866]
[1680513777064,0.00138912,28343.0,28342.0,0.47393866]
[1680513780858,0.00138912,28343.0,28342.0,0.31149906]
[1680513781076,0.00138912,28343.0,28342.0,0.34577106]
[1680513782120,0.00138912,28343.0,28342.0,0.41633706]
[1680513786690,0.00138912,28343.0,28342.0,0.41651706]
[1680513786874,0.00138912,28343.0,28342.0,0.41645706]
[1680513787023,0.00138912,28343.0,28342.0,0.41633706]
[1680513791510,0.00138912,28343.0,28335.0,0.0086628]
[1680513791511,0.49833896,28343.0,28335.0,0.0086628]
[1680513791749,0.87497497,28336.0,28323.0,0.13019059]
[1680513791986,0.11712494,28326.0,28324.0,0.02208]
[1680513792233,0.30209681,28326.0,28325.0,0.00087397]
[1680513792464,0.30209681,28326.0,28324.0,0.00876097]
[1680513792717,0.193112,28325.0,28324.0,0.00876097]
[1680513792954,0.193292,28325.0,28324.0,0.00876097]
[1680513793652,0.205648,28325.0,28324.0,0.00876097]
[1680513793875,0.232648,28325.0,28324.0,0.00876097]
[1680513794099,0.382648,28325.0,28324.0,0.00876097]
[1680513795213,0.73762297,28325.0,28324.0,0.00876097]
[1680513796542,0.8631459,28325.0,28324.0,0.00876097]
[1680513797717,0.25028234,28325.0,28324.0,0.00876097]
[1680513797940,0.071992,28325.0,28324.0,0.00876097]
[1680513798159,0.027,28325.0,28324.0,0.00876097]
[1680513798380,0.039356,28325.0,28324.0,0.00876097]
[1680513799055,0.055511,28325.0,28324.0,0.00876097]
[1680513799293,0.068511,28325.0,28324.0,0.00876097]
[1680513799517,0.043155,28325.0,28324.0,0.00876097]
[1680513799730,0.063155,28325.0,28324.0,0.00876097]
[1680513799948,0.02,28325.0,28324.0,0.00876097]
[1680513800140,0.075724,28325.0,28324.0,0.00876097]
[1680513800641,0.09747999,28325.0,28324.0,0.00876097]
[1680513801317,0.075724,28325.0,28324.0,0.00876097]
[1680513801537,0.075844,28325.0,28324.0,0.00876097]
[1680513801759,0.075904,28325.0,28324.0,0.00876097]
[1680513801989,0.075724,28325.0,28323.0,0.03848756]
[1680513802212,0.042269,28324.0,28323.0,0.03848756]
[1680513802428,0.27934,28324.0,28323.0,0.03848756]
[1680513802846,0.57934,28324.0,28323.0,0.03848756]
[1680513803068,0.042269,28324.0,28323.0,0.03848756]
[1680513803289,0.013,28324.0,28323.0,0.03848756]
[1680513805275,0.13012494,28324.0,28323.0,0.03848756]
[1680513805938,0.17320894,28324.0,28323.0,0.03848756]
[1680513806157,0.18582394,28324.0,28323.0,0.03848756]
[1680513808676,0.18582394,28324.0,28323.0,0.01428756]
[1680513808919,0.21053794,28324.0,28323.0,0.01428756]
[1680513809111,0.22817228,28324.0,28323.0,0.01428756]
[1680513809332,0.58314725,28324.0,28323.0,0.01428756]
[1680513809563,0.56551291,28324.0,28323.0,0.01428756]
[1680513810229,0.55251291,28324.0,28323.0,0.01428756]
[1680513810445,0.56551291,28324.0,28323.0,0.01428756]
[1680513810669,0.55251291,28324.0,28323.0,0.01428756]
[1680513810929,0.57951291,28324.0,28323.0,0.01428756]
[1680513813337,0.6573548,28324.0,28323.0,0.01428756]
[1680513813786,0.57951291,28324.0,28323.0,0.01428756]
[1680513814446,0.54244191,28324.0,28323.0,0.01428756]
[1680513814894,0.55479891,28324.0,28323.0,0.01428756]
[1680513816642,0.57243325,28324.0,28323.0,0.01428756]
[1680513817085,0.55479891,28324.0,28323.0,0.01428756]
[1680513818860,0.18746694,28324.0,28323.0,0.01428756]
[1680513819297,0.19982394,28324.0,28323.0,0.01428756]
[1680513819535,0.2,28327.0,28323.0,0.01428756]
[1680513819536,0.00018,28328.0,28326.0,0.45357506]
[1680513819758,0.00098415,28330.0,28329.0,0.45357506]
[1680513819988,0.11712494,28339.0,28329.0,1.04012703]
[1680513820274,0.11712494,28339.0,28331.0,0.3707]
[1680513820499,0.11712494,28339.0,28333.0,0.017647]
[1680513820747,0.11811399,28339.0,28334.0,0.030077]
[1680513820969,0.11911399,28339.0,28334.0,0.047723]
[1680513821191,1.26999495,28338.0,28335.0,0.029998]
[1680513821416,1.26999495,28338.0,28335.0,0.017645]
[1680513822516,1.27099495,28338.0,28335.0,0.027645]
[1680513822730,1.26999495,28337.0,28335.0,0.027645]
[1680513822953,0.001,28338.0,28335.0,0.027645]
[1680513823173,0.001,28338.0,28336.0,0.029483]
[1680513823174,1.26997585,28337.0,28336.0,0.029483]
[1680513823395,0.001,28338.0,28335.0,0.01018]
[1680513823616,0.001,28338.0,28336.0,0.02837]
[1680513823833,0.02507993,28342.0,28337.0,0.029915]
[1680513824091,1.26998529,28341.0,28336.0,0.017645]
[1680513824879,1.26998529,28341.0,28336.0,0.020645]
[1680513825140,1.26998529,28341.0,28336.0,0.052935]
[1680513825374,1.26998529,28341.0,28336.0,0.055935]
[1680513825597,1.26998529,28341.0,28336.0,0.055995]
[1680513825818,1.26998529,28341.0,28338.0,0.08287506]
[1680513826038,1.26998529,28341.0,28339.0,0.166343]
[1680513826256,0.02507993,28342.0,28339.0,0.166523]
[1680513826733,0.02409,28342.0,28339.0,0.166523]
[1680513826943,0.02409,28342.0,28340.0,0.029448]
[1680513827170,0.02409,28342.0,28340.0,0.04709]
[1680513827382,0.02409,28342.0,28340.0,0.017642]
[1680513827814,0.02409,28342.0,28339.0,0.14888]
[1680513828058,0.02409,28342.0,28340.0,0.017642]
[1680513828724,0.14221494,28342.0,28340.0,0.045642]
[1680513828934,0.14121494,28342.0,28340.0,0.017822]
[1680513829147,0.14221494,28342.0,28340.0,0.045642]
[1680513829364,0.14121494,28342.0,28340.0,0.017822]
[1680513829583,0.14221494,28342.0,28340.0,0.045642]
[1680513829808,0.14121494,28342.0,28340.0,0.017822]
[1680513830029,0.14221494,28342.0,28340.0,0.045822]
[1680513830946,0.14121494,28342.0,28340.0,0.017822]
[1680513831168,0.14221494,28342.0,28340.0,0.02818]
[1680513831393,0.14121494,28342.0,28340.0,0.017822]
[1680513831610,0.14221494,28342.0,28340.0,0.045642]
[1680513831845,0.14121494,28342.0,28340.0,0.017822]
[1680513832061,0.14221494,28342.0,28340.0,0.045642]
[1680513832480,0.14121494,28342.0,28340.0,0.017642]
[1680513832692,0.14221494,28342.0,28340.0,0.045642]
[1680513832914,0.14121494,28342.0,28340.0,0.017642]
[1680513833781,0.14121494,28342.0,28340.0,0.016]
[1680513833994,0.14221494,28342.0,28340.0,0.016]
[1680513834650,0.14121494,28342.0,28337.0,0.00018]
[1680513834895,0.14121494,28342.0,28340.0,0.009]
[1680513834896,0.28418981,28342.0,28340.0,0.009]
[1680513835109,0.14221494,28342.0,28340.0,0.009]
[1680513837100,0.50953891,28342.0,28340.0,0.009]
[1680513837321,0.027629,28341.0,28340.0,0.009]
[1680513837758,0.49718991,28342.0,28340.0,0.009]
[1680513837982,0.028963,28341.0,28340.0,0.009]
[1680513838206,0.37906497,28342.0,28336.0,0.0825]
[1680513838498,0.11812494,28341.0,28340.0,0.009]
[1680513838711,0.11712494,28341.0,28336.0,0.0825]
[1680513838929,0.11712494,28341.0,28336.0,0.08268]
[1680513838930,0.25909981,28341.0,28336.0,0.08268]
[1680513839152,0.11712494,28338.0,28336.0,0.0825]
[1680513839367,0.11712494,28338.0,28337.0,0.03004]
[1680513840223,0.11812494,28338.0,28337.0,0.03004]
[1680513840439,0.11712494,28338.0,28336.0,0.00018]
[1680513840655,0.11812494,28338.0,28337.0,0.028]
[1680513841520,0.11812494,28338.0,28337.0,0.045644]
[1680513841741,0.11812494,28338.0,28337.0,0.076556]
[1680513841965,0.001,28338.0,28337.0,0.076736]
[1680513842197,0.001,28338.0,28337.0,0.159556]
[1680513842638,0.00091517,28338.0,28337.0,0.159556]
[1680513842861,0.00091517,28338.0,28337.0,0.24243106]
[1680513843087,0.00091517,28338.0,28337.0,0.54243106]
[1680513843564,0.00091517,28338.0,28337.0,1.04740603]
[1680513844247,0.00091517,28338.0,28337.0,0.89758603]
[1680513844372,0.02409,28342.0,28338.0,0.15]
[1680513844593,0.02409,28342.0,28339.0,0.16539]
[1680513844813,0.02409,28342.0,28340.0,0.02919]
[1680513845035,0.02409,28342.0,28341.0,0.017642]
[1680513845239,0.02409,28342.0,28341.0,0.046083]
[1680513846385,0.02409,28342.0,28341.0,0.074083]
[1680513846815,0.02409,28342.0,28341.0,0.046083]
[1680513847015,0.02409,28342.0,28341.0,0.074083]
[1680513847280,0.02409,28342.0,28341.0,0.046083]
[1680513847474,0.02409,28342.0,28341.0,0.074083]
[1680513847886,0.02409,28342.0,28341.0,0.046083]
[1680513848103,0.11712494,28340.0,28332.0,0.21022647]
[1680513848315,0.11712494,28340.0,28332.0,0.00018]
[1680513848316,0.0829,28335.0,28332.0,0.00018]
[1680513848519,0.19952494,28333.0,28331.0,0.00018]
[1680513848731,0.11712494,28330.0,28327.0,0.00012]
[1680513848933,0.17837687,28329.0,28326.0,0.00018]
[1680513849134,0.14197487,28329.0,28326.0,0.00018]
[1680513849537,0.03207787,28329.0,28324.0,0.00018]
[1680513849739,0.03207787,28329.0,28323.0,0.45042056]
[1680513849944,0.03207787,28329.0,28323.0,0.80539553]
[1680513850145,0.03207787,28329.0,28324.0,0.08287506]
[1680513850555,0.002,28329.0,28324.0,0.08287506]
[1680513850760,0.14397487,28329.0,28324.0,0.08287506]
[1680513850966,0.14397487,28329.0,28324.0,0.08305506]
[1680513851180,0.002,28329.0,28324.0,0.08305506]
[1680513851384,0.002,28329.0,28324.0,0.08287506]
[1680513851588,0.11811292,28330.0,28324.0,0.08287506]
[1680513851806,0.26008779,28330.0,28324.0,0.20177206]
[1680513852010,0.11811292,28330.0,28325.0,0.109897]
[1680513852203,0.11811292,28330.0,28325.0,0.127549]
[1680513852629,0.11712494,28330.0,28325.0,0.127549]
[1680513852834,0.11712494,28330.0,28325.0,0.017652]
[1680513853177,0.11712494,28330.0,28325.0,0.019652]
[1680513854083,0.11712494,28330.0,28325.0,0.002]
[1680513855397,0.25909981,28330.0,28325.0,0.002]
[1680513855833,0.11718494,28330.0,28325.0,0.002]
[1680513856050,0.11712494,28330.0,28325.0,0.002]
[1680513856946,0.11712494,28330.0,28326.0,0.017651]
[1680513857431,0.11712494,28330.0,28325.0,0.019651]
[1680513857650,0.11712494,28330.0,28325.0,0.002]
[1680513857873,0.11712494,28330.0,28324.0,0.45568203]
[1680513858089,0.11712494,28328.0,28324.0,0.35497497]
[1680513858315,0.11712494,28328.0,28324.0,0.37262697]
[1680513858532,0.11712494,28328.0,28324.0,0.35497497]
[1680513858807,0.11712494,28328.0,28325.0,0.002]
[1680513859002,0.11712494,28328.0,28324.0,0.35497497]
[1680513859219,0.11712494,28328.0,28324.0,0.37697497]
[1680513859426,0.11712494,28328.0,28324.0,0.37709497]
[1680513859646,0.11712494,28328.0,28324.0,0.37715497]
[1680513859859,0.11712494,28325.0,28324.0,0.02218]
[1680513860076,0.27145581,28325.0,28323.0,0.01446756]
[1680513860297,0.028157,28324.0,28323.0,0.01428756]
[1680513861424,0.032157,28324.0,28323.0,0.01528756]
[1680513861656,0.028157,28324.0,28323.0,0.01428756]
[1680513861927,0.032157,28324.0,28323.0,0.01628756]
[1680513866465,0.004,28324.0,28323.0,0.01628756]
[1680513867325,0.004,28324.0,28323.0,0.85185953]
[1680513867555,0.004,28324.0,28323.0,0.79138053]
[1680513867798,0.00018,28329.0,28323.0,0.75761553]
[1680513868042,0.00099222,28330.0,28329.0,0.08287506]
[1680513868259,0.00099222,28330.0,28329.0,0.81121265]
[1680513868476,0.11712494,28334.0,28329.0,0.82311365]
[1680513868696,0.00018,28337.0,28330.0,0.4537]
[1680513868911,0.11730494,28339.0,28331.0,0.53473991]
[1680513869194,0.11730494,28339.0,28331.0,0.16403991]
[1680513869195,0.00018,28339.0,28331.0,0.16403991]
[1680513869406,0.00098079,28339.0,28331.0,0.16403991]
[1680513869621,0.11712494,28338.0,28331.0,0.16403991]
[1680513870050,0.11712494,28338.0,28331.0,0.19203991]
[1680513870264,0.11712494,28338.0,28331.0,0.16403991]
[1680513870488,0.00099299,28338.0,28331.0,0.16403991]
[1680513870706,0.00099299,28338.0,28331.0,0.045648]
[1680513870924,0.001,28340.0,28331.0,0.045648]
[1680513871142,0.11712494,28335.0,28331.0,0.045648]
[1680513871817,0.11712494,28335.0,28331.0,0.37262297]
[1680513872246,0.14197487,28335.0,28331.0,0.028]
[1680513872467,0.11712494,28332.0,28329.0,0.40978]
[1680513872685,0.25909981,28332.0,28331.0,0.028]
[1680513872901,0.25909981,28332.0,28329.0,0.35515497]
[1680513872902,0.11712494,28332.0,28329.0,0.35515497]
[1680513873154,0.11712494,28332.0,28331.0,0.028]
[1680513873380,0.11712494,28332.0,28329.0,0.35497497]
[1680513873603,0.11712494,28332.0,28328.0,0.00018]
[1680513873604,0.11712494,28332.0,28331.0,0.023]
[1680513874515,0.00018,28334.0,28325.0,0.48017059]
[1680513874516,0.00018,28334.0,28326.0,0.017651]
[1680513874736,0.11712494,28328.0,28327.0,0.35497497]
[1680513875960,0.11712494,28328.0,28327.0,0.38297497]
[1680513876749,0.11712494,28328.0,28327.0,0.40062597]
[1680513876958,0.11712494,28329.0,28327.0,0.40062597]
[1680513877562,0.11712494,28329.0,28327.0,0.37262597]
[1680513877911,0.11712494,28329.0,28327.0,0.40062597]
[1680513878583,0.00018,28332.0,28327.0,0.40062597]
[1680513878837,0.14296136,28333.0,28327.0,0.51052297]
[1680513879052,0.11712494,28329.0,28327.0,0.49287197]